[Event "*** Titled Tuesday 3|2 Blitz"]
[Site "Chess.com"]
[Date "2016.07.05"]
[Round "5"]
[White "Zenzo"]
[Black "dawtonlms"]
[Result "0-1"]
[WhiteElo "2310"]
[BlackElo "2181"]
[TimeControl "180+2"]
[EndTime "18:05:23 PDT"]
[Termination "dawtonlms won by checkmate"]

1. e4 {[%clk 0:03:01.9]} 1... c5 {[%clk 0:02:53.3]} 2. Nf3 {[%clk 0:03:02.7]}
2... e6 {[%clk 0:02:54.7]} 3. d4 {[%clk 0:03:03.7]} 3... cxd4 {[%clk 0:02:56]}
4. Nxd4 {[%clk 0:03:04.7]} 4... a6 {[%clk 0:02:57.5]} 5. Nc3 {[%clk 0:03:05.3]}
5... Qc7 {[%clk 0:02:58.3]} 6. Bd3 {[%clk 0:03:05.9]} 6... Nf6 {[%clk
0:02:57.6]} 7. O-O {[%clk 0:03:06.5]} 7... Nc6 {[%clk 0:02:56.3]} 8. Nxc6 {[%clk
0:03:04.9]} 8... dxc6 {[%clk 0:02:57.3]} 9. f4 {[%clk 0:02:47.4]} 9... Bc5+
{[%clk 0:02:52.1]} 10. Kh1 {[%clk 0:02:48.6]} 10... e5 {[%clk 0:02:53]} 11. f5
{[%clk 0:02:23.4]} 11... h5 {[%clk 0:02:51.4]} 12. Qe2 {[%clk 0:02:14.2]} 12...
Ng4 {[%clk 0:02:50.9]} 13. Nd1 {[%clk 0:02:14.4]} 13... Qb6 {[%clk 0:02:45.5]}
14. a3 {[%clk 0:01:58.3]} 14... a5 {[%clk 0:02:38.3]} 15. Rb1 {[%clk 0:01:58.9]}
15... a4 {[%clk 0:02:10.3]} 16. Bd2 {[%clk 0:01:51.4]} 16... f6 {[%clk
0:02:02.5]} 17. h3 {[%clk 0:01:06.3]} 17... Bd7 {[%clk 0:01:54.3]} 18. Rf3
{[%clk 0:00:59.5]} 18... Kf8 {[%clk 0:01:43]} 19. Ne3 {[%clk 0:00:53.6]} 19...
Be8 {[%clk 0:01:33.1]} 20. Rg3 {[%clk 0:00:50.1]} 20... Nxe3 {[%clk 0:01:33]}
21. Bxe3 {[%clk 0:00:51.2]} 21... Bxe3 {[%clk 0:01:34.2]} 22. Rxe3 {[%clk
0:00:52.3]} 22... Bf7 {[%clk 0:01:34.4]} 23. Rf3 {[%clk 0:00:48.4]} 23... Rd8
{[%clk 0:01:34.7]} 24. Rff1 {[%clk 0:00:49.1]} 24... Ba2 {[%clk 0:01:33.4]} 25.
Rbd1 {[%clk 0:00:32.6]} 25... Qxb2 {[%clk 0:00:50.5]} 26. Bc4 {[%clk 0:00:33.5]}
26... Rd4 {[%clk 0:00:40.2]} 27. Bxa2 {[%clk 0:00:28.3]} 27... Qxa2 {[%clk
0:00:39.7]} 28. Rxd4 {[%clk 0:00:30]} 28... exd4 {[%clk 0:00:40.8]} 29. e5
{[%clk 0:00:31.7]} 29... Qd5 {[%clk 0:00:39.4]} 30. exf6 {[%clk 0:00:26.6]}
30... gxf6 {[%clk 0:00:39.8]} 31. Re1 {[%clk 0:00:27.9]} 31... Qd7 {[%clk
0:00:34.1]} 32. Qe4 {[%clk 0:00:16.7]} 32... Rg8 {[%clk 0:00:32.5]} 33. Qf4
{[%clk 0:00:17]} 33... Kf7 {[%clk 0:00:21.3]} 34. Re6 {[%clk 0:00:17.7]} 34...
Qd5 {[%clk 0:00:21.9]} 35. Qf2 {[%clk 0:00:17.1]} 35... h4 {[%clk 0:00:19.4]}
36. Re2 {[%clk 0:00:15.7]} 36... Rg3 {[%clk 0:00:20]} 37. Kh2 {[%clk 0:00:14.1]}
37... Qd6 {[%clk 0:00:17.7]} 38. Kg1 {[%clk 0:00:15.5]} 38... d3 {[%clk
0:00:18.5]} 39. cxd3 {[%clk 0:00:16.5]} 39... Rxd3 {[%clk 0:00:19.8]} 40. Qxh4
{[%clk 0:00:15.4]} 40... Rd1+ {[%clk 0:00:20.9]} 41. Re1 {[%clk 0:00:17]} 41...
Qc5+ {[%clk 0:00:21.6]} 42. Kh2 {[%clk 0:00:18]} 42... Rxe1 {[%clk 0:00:22.8]}
43. Qxe1 {[%clk 0:00:19.9]} 43... Qxf5 {[%clk 0:00:24]} 44. Qb4 {[%clk
0:00:20.8]} 44... Qe5+ {[%clk 0:00:24.9]} 45. Kh1 {[%clk 0:00:22.4]} 45... b5
{[%clk 0:00:26.2]} 46. Qh4 {[%clk 0:00:19.6]} 46... Qa1+ {[%clk 0:00:26.3]} 47.
Kh2 {[%clk 0:00:21]} 47... Qxa3 {[%clk 0:00:27.3]} 48. Qh7+ {[%clk 0:00:22.2]}
48... Ke6 {[%clk 0:00:28.3]} 49. Qg8+ {[%clk 0:00:23.6]} 49... Kd7 {[%clk
0:00:29.1]} 50. Qf7+ {[%clk 0:00:24.3]} 50... Qe7 {[%clk 0:00:30.4]} 51. Qa2
{[%clk 0:00:24.2]} 51... Qe5+ {[%clk 0:00:31.1]} 52. g3 {[%clk 0:00:25.9]} 52...
Qc3 {[%clk 0:00:26.2]} 53. Qf7+ {[%clk 0:00:26]} 53... Kd6 {[%clk 0:00:27.4]}
54. h4 {[%clk 0:00:26.7]} 54... a3 {[%clk 0:00:28.3]} 55. h5 {[%clk 0:00:25.8]}
55... Qb2+ {[%clk 0:00:25.1]} 56. Kh3 {[%clk 0:00:27]} 56... a2 {[%clk
0:00:26.7]} 57. Qf8+ {[%clk 0:00:24]} 57... Kd5 {[%clk 0:00:26.3]} 58. Qf7+
{[%clk 0:00:23.3]} 58... Kc5 {[%clk 0:00:25.7]} 59. Qa7+ {[%clk 0:00:23.9]}
59... Kb4 {[%clk 0:00:24.6]} 60. Qe7+ {[%clk 0:00:23.4]} 60... Kb3 {[%clk
0:00:24]} 61. Qe6+ {[%clk 0:00:15.5]} 61... Ka3 {[%clk 0:00:21.5]} 62. Qd6+
{[%clk 0:00:13.5]} 62... Qb4 {[%clk 0:00:21.2]} 63. Qd3+ {[%clk 0:00:13.8]}
63... Qb3 {[%clk 0:00:21.7]} 64. Qd6+ {[%clk 0:00:14.7]} 64... b4 {[%clk
0:00:22.5]} 65. Qxf6 {[%clk 0:00:11.4]} 65... Qc3 {[%clk 0:00:22.5]} 66. Qf5
{[%clk 0:00:06.3]} 66... a1=Q {[%clk 0:00:22]} 67. h6 {[%clk 0:00:04.7]} 67...
Qh1+ {[%clk 0:00:22.4]} 68. Kg4 {[%clk 0:00:06.3]} 68... Qc4+ {[%clk 0:00:22.9]}
69. Kg5 {[%clk 0:00:07.2]} 69... Qcc1+ {[%clk 0:00:21.4]} 70. Kg4 {[%clk
0:00:07.5]} 70... Qhxh6 {[%clk 0:00:20.3]} 71. Qd3+ {[%clk 0:00:03.8]} 71... b3
{[%clk 0:00:20.9]} 72. Qa6+ {[%clk 0:00:04.6]} 72... Kb2 {[%clk 0:00:22.2]} 73.
Qe2+ {[%clk 0:00:05.2]} 73... Qc2 {[%clk 0:00:23.1]} 74. Qe5+ {[%clk 0:00:04.3]}
74... Qc3 {[%clk 0:00:24.5]} 75. Qe2+ {[%clk 0:00:05.5]} 75... Qhd2 {[%clk
0:00:25.7]} 76. Qe4 {[%clk 0:00:04.8]} 76... Qd1+ {[%clk 0:00:26.3]} 77. Kh3
{[%clk 0:00:05.7]} 77... Qh5+ {[%clk 0:00:26.5]} 78. Kg2 {[%clk 0:00:06.9]}
78... Qc2+ {[%clk 0:00:28]} 79. Kg1 {[%clk 0:00:08.3]} 79... Qxe4 {[%clk
0:00:28.3]} 80. Kf1 {[%clk 0:00:09.5]} 80... Qhh1+ {[%clk 0:00:29]} 81. Kf2
{[%clk 0:00:10.5]} 81... Qhg2# {[%clk 0:00:30.3]} 0-1

[Event "*** Titled Tuesday 3|2 Blitz"]
[Site "Chess.com"]
[Date "2016.07.05"]
[Round "5"]
[White "Ksenia_Legenko"]
[Black "MFBerna"]
[Result "0-1"]
[WhiteElo "2062"]
[BlackElo "2262"]
[TimeControl "180+2"]
[EndTime "18:05:51 PDT"]
[Termination "MFBerna won by checkmate"]

1. d4 {[%clk 0:03:01.9]} 1... Nf6 {[%clk 0:02:58.3]} 2. c4 {[%clk 0:03:02.4]}
2... e6 {[%clk 0:02:59]} 3. g3 {[%clk 0:03:03.1]} 3... Bb4+ {[%clk 0:03:00.1]}
4. Bd2 {[%clk 0:03:03.6]} 4... Qe7 {[%clk 0:03:01.5]} 5. Bg2 {[%clk 0:03:02.2]}
5... O-O {[%clk 0:03:02.6]} 6. Nf3 {[%clk 0:03:02.5]} 6... d5 {[%clk 0:03:00.7]}
7. Qc2 {[%clk 0:02:53.7]} 7... Nbd7 {[%clk 0:02:48.7]} 8. O-O {[%clk 0:02:53.8]}
8... Bxd2 {[%clk 0:02:38.2]} 9. Nbxd2 {[%clk 0:02:54]} 9... c5 {[%clk
0:02:35.2]} 10. e4 {[%clk 0:02:40.8]} 10... cxd4 {[%clk 0:02:22.1]} 11. Nxd4
{[%clk 0:02:41]} 11... dxe4 {[%clk 0:02:14.7]} 12. Nxe4 {[%clk 0:02:39.1]} 12...
Nc5 {[%clk 0:02:10.4]} 13. Nc3 {[%clk 0:01:59.6]} 13... Rb8 {[%clk 0:01:54.9]}
14. Rad1 {[%clk 0:01:58.3]} 14... Bd7 {[%clk 0:01:55.7]} 15. b4 {[%clk
0:01:57.1]} 15... Na6 {[%clk 0:01:48.4]} 16. a3 {[%clk 0:01:57.8]} 16... Rfc8
{[%clk 0:01:48.7]} 17. Qb3 {[%clk 0:01:37.5]} 17... Nc7 {[%clk 0:01:43]} 18.
Rfe1 {[%clk 0:01:37.3]} 18... Rd8 {[%clk 0:01:38.9]} 19. Nf5 {[%clk 0:01:33.3]}
19... Qf8 {[%clk 0:01:39.2]} 20. Nd4 {[%clk 0:01:28.2]} 20... Be8 {[%clk
0:01:36.8]} 21. b5 {[%clk 0:01:21.8]} 21... Nd7 {[%clk 0:01:30.6]} 22. Ne4
{[%clk 0:01:20.4]} 22... Nc5 {[%clk 0:01:22.2]} 23. Qc2 {[%clk 0:01:09]} 23...
e5 {[%clk 0:00:47.7]} 24. Nf5 {[%clk 0:00:30.2]} 24... N7e6 {[%clk 0:00:40.5]}
25. Nfd6 {[%clk 0:00:08.9]} 25... Nd4 {[%clk 0:00:30.2]} 26. Qb1 {[%clk
0:00:09]} 26... Rxd6 {[%clk 0:00:19.4]} 27. Nxc5 {[%clk 0:00:09.9]} 27... Qe7
{[%clk 0:00:08.2]} 28. Ne4 {[%clk 0:00:10.7]} 28... Rdd8 {[%clk 0:00:07.4]} 29.
h4 {[%clk 0:00:11.6]} 29... f6 {[%clk 0:00:07.6]} 30. Nc3 {[%clk 0:00:11.5]}
30... Bh5 {[%clk 0:00:07.1]} 31. Rd2 {[%clk 0:00:10.6]} 31... Qxa3 {[%clk
0:00:07.9]} 32. Bd5+ {[%clk 0:00:09.5]} 32... Kh8 {[%clk 0:00:06.9]} 33. Ne4
{[%clk 0:00:09.1]} 33... Nf3+ {[%clk 0:00:06.6]} 34. Kg2 {[%clk 0:00:09.7]}
34... Nxe1+ {[%clk 0:00:07.1]} 35. Qxe1 {[%clk 0:00:10.2]} 35... Bf3+ {[%clk
0:00:07.7]} 36. Kh2 {[%clk 0:00:11.1]} 36... Qe7 {[%clk 0:00:07.1]} 37. Qe3
{[%clk 0:00:09.3]} 37... Bxe4 {[%clk 0:00:06.5]} 38. Qxe4 {[%clk 0:00:10.4]}
38... b6 {[%clk 0:00:07.3]} 39. Ra2 {[%clk 0:00:10.6]} 39... Rdc8 {[%clk
0:00:07.1]} 40. Qf5 {[%clk 0:00:03.8]} 40... Rd8 {[%clk 0:00:07]} 41. Be4 {[%clk
0:00:01.5]} 41... g6 {[%clk 0:00:08]} 42. Qf3 {[%clk 0:00:02.6]} 42... Kg7
{[%clk 0:00:09.3]} 43. Bd5 {[%clk 0:00:03.7]} 43... f5 {[%clk 0:00:10.3]} 44.
Qc3 {[%clk 0:00:04.2]} 44... Qf6 {[%clk 0:00:10.9]} 45. Qb3 {[%clk 0:00:04.3]}
45... Rd7 {[%clk 0:00:10.9]} 46. Bc6 {[%clk 0:00:04.7]} 46... Re7 {[%clk
0:00:11.3]} 47. Bd5 {[%clk 0:00:05.2]} 47... Rd8 {[%clk 0:00:12.2]} 48. Qb1
{[%clk 0:00:04.2]} 48... e4 {[%clk 0:00:13.3]} 49. Ra3 {[%clk 0:00:03.1]} 49...
Qe5 {[%clk 0:00:13.3]} 50. Ra2 {[%clk 0:00:04.4]} 50... e3 {[%clk 0:00:13.8]}
51. Qf1 {[%clk 0:00:05.1]} 51... e2 {[%clk 0:00:13.4]} 52. Qe1 {[%clk
0:00:06.3]} 52... f4 {[%clk 0:00:14.5]} 53. Kg2 {[%clk 0:00:06.7]} 53... fxg3
{[%clk 0:00:15.1]} 54. fxg3 {[%clk 0:00:07.9]} 54... Rxd5 {[%clk 0:00:16.4]} 55.
cxd5 {[%clk 0:00:08.7]} 55... Qxd5+ {[%clk 0:00:18.3]} 56. Kh3 {[%clk
0:00:10.3]} 56... Qxa2 {[%clk 0:00:19.1]} 57. Qc3+ {[%clk 0:00:12]} 57... Kf7
{[%clk 0:00:19.4]} 58. Qf3+ {[%clk 0:00:12.2]} 58... Kg7 {[%clk 0:00:20.5]} 59.
Qc3+ {[%clk 0:00:12.9]} 59... Kg8 {[%clk 0:00:17]} 60. Qc8+ {[%clk 0:00:13.3]}
60... Kf7 {[%clk 0:00:17.6]} 61. Qh8 {[%clk 0:00:11.5]} 61... Qe6+ {[%clk
0:00:18.1]} 62. Kh2 {[%clk 0:00:11.5]} 62... e1=Q {[%clk 0:00:17.4]} 63. Qxh7+
{[%clk 0:00:12.8]} 63... Ke8 {[%clk 0:00:18.6]} 64. Qh8+ {[%clk 0:00:14.2]}
64... Kd7 {[%clk 0:00:19.9]} 65. Qd4+ {[%clk 0:00:15.7]} 65... Kc7 {[%clk
0:00:18.2]} 66. Qf4+ {[%clk 0:00:15.7]} 66... Kb7 {[%clk 0:00:18.5]} 67. Qf3+
{[%clk 0:00:16.3]} 67... Kc8 {[%clk 0:00:19.7]} 68. Qa8+ {[%clk 0:00:17]} 68...
Kd7 {[%clk 0:00:19.2]} 69. Qb7+ {[%clk 0:00:17.7]} 69... Ke8 {[%clk 0:00:20.2]}
70. Qb8+ {[%clk 0:00:18.4]} 70... Kf7 {[%clk 0:00:21.3]} 71. Qf4+ {[%clk
0:00:19]} 71... Kg7 {[%clk 0:00:22]} 72. Qd4+ {[%clk 0:00:19.2]} 72... Kh7
{[%clk 0:00:23.4]} 73. h5 {[%clk 0:00:17.3]} 73... Q6e2+ {[%clk 0:00:23.8]} 74.
Kh3 {[%clk 0:00:18.2]} 74... Qh1# {[%clk 0:00:23.7]} 0-1

[Event "*** Titled Tuesday 3|2 Blitz"]
[Site "Chess.com"]
[Date "2016.07.05"]
[Round "5"]
[White "wonderfultime"]
[Black "Danhy"]
[Result "1-0"]
[WhiteElo "2666"]
[BlackElo "2413"]
[TimeControl "180+2"]
[EndTime "18:05:59 PDT"]
[Termination "wonderfultime won on time"]

1. d4 {[%clk 0:03:01.9]} 1... Nf6 {[%clk 0:02:59.8]} 2. c4 {[%clk 0:03:03]} 2...
g6 {[%clk 0:02:56.8]} 3. Nc3 {[%clk 0:03:04]} 3... d5 {[%clk 0:02:58.3]} 4. cxd5
{[%clk 0:03:04.9]} 4... Nxd5 {[%clk 0:02:58.2]} 5. e4 {[%clk 0:03:06.4]} 5...
Nxc3 {[%clk 0:02:59.2]} 6. bxc3 {[%clk 0:03:08.3]} 6... Bg7 {[%clk 0:03:00.7]}
7. Qa4+ {[%clk 0:03:09.6]} 7... Nd7 {[%clk 0:02:55.3]} 8. Nf3 {[%clk 0:03:10.1]}
8... O-O {[%clk 0:02:55.8]} 9. Be2 {[%clk 0:03:11.5]} 9... c5 {[%clk 0:02:55.4]}
10. O-O {[%clk 0:03:12.7]} 10... b6 {[%clk 0:02:51.4]} 11. Bg5 {[%clk
0:03:10.1]} 11... Bb7 {[%clk 0:02:51.3]} 12. d5 {[%clk 0:03:10.4]} 12... Bxc3
{[%clk 0:02:45.1]} 13. Rac1 {[%clk 0:03:08.8]} 13... Bf6 {[%clk 0:02:44.3]} 14.
Bh6 {[%clk 0:03:09]} 14... Re8 {[%clk 0:02:44.8]} 15. Bb5 {[%clk 0:03:09.6]}
15... Bc8 {[%clk 0:02:42.2]} 16. Bc6 {[%clk 0:03:08.3]} 16... b5 {[%clk
0:01:52.6]} 17. Bxb5 {[%clk 0:02:58.3]} 17... Nb6 {[%clk 0:01:51.1]} 18. Qa3
{[%clk 0:02:02.6]} 18... Bd7 {[%clk 0:01:48.8]} 19. Rxc5 {[%clk 0:02:03.6]}
19... Bxb5 {[%clk 0:01:43.5]} 20. Rxb5 {[%clk 0:02:05.5]} 20... Qd6 {[%clk
0:01:41.7]} 21. Qe3 {[%clk 0:01:59.7]} 21... Nc4 {[%clk 0:01:39.3]} 22. Qe2
{[%clk 0:02:00.4]} 22... Rac8 {[%clk 0:01:36.2]} 23. Rc1 {[%clk 0:01:54.3]}
23... Ne5 {[%clk 0:01:33.5]} 24. Rxc8 {[%clk 0:01:54.3]} 24... Rxc8 {[%clk
0:01:31.7]} 25. g3 {[%clk 0:01:54.8]} 25... Qc7 {[%clk 0:01:27.6]} 26. Kg2
{[%clk 0:01:54]} 26... Nxf3 {[%clk 0:01:25.4]} 27. Qxf3 {[%clk 0:01:55.9]} 27...
Bg7 {[%clk 0:01:23.7]} 28. Bg5 {[%clk 0:01:46.5]} 28... Bd4 {[%clk 0:01:20.5]}
29. Qf4 {[%clk 0:01:32.6]} 29... Qxf4 {[%clk 0:01:18]} 30. gxf4 {[%clk
0:01:30.7]} 30... f6 {[%clk 0:01:12.8]} 31. Bh4 {[%clk 0:01:32]} 31... Kf8
{[%clk 0:01:09.8]} 32. Rb7 {[%clk 0:01:28]} 32... Rc2 {[%clk 0:01:04.5]} 33. a3
{[%clk 0:01:26.8]} 33... h6 {[%clk 0:01:01.2]} 34. Rb3 {[%clk 0:01:14.2]} 34...
Bb6 {[%clk 0:00:56.6]} 35. Bg3 {[%clk 0:01:09.8]} 35... Kf7 {[%clk 0:00:52.1]}
36. Rd3 {[%clk 0:01:09]} 36... Bc5 {[%clk 0:00:50]} 37. e5 {[%clk 0:01:05.9]}
37... Ra2 {[%clk 0:00:45.5]} 38. Rc3 {[%clk 0:01:07.1]} 38... Bb6 {[%clk
0:00:43.8]} 39. e6+ {[%clk 0:00:58.8]} 39... Kg7 {[%clk 0:00:41.2]} 40. Kf3
{[%clk 0:00:51.9]} 40... Rd2 {[%clk 0:00:38.4]} 41. Ke4 {[%clk 0:00:49.7]} 41...
f5+ {[%clk 0:00:36.2]} 42. Kf3 {[%clk 0:00:46.2]} 42... Rxd5 {[%clk 0:00:36.9]}
43. Bh4 {[%clk 0:00:47.5]} 43... Bc5 {[%clk 0:00:34.3]} 44. a4 {[%clk
0:00:41.7]} 44... Bd6 {[%clk 0:00:32.7]} 45. Rc4 {[%clk 0:00:39.7]} 45... Rd1
{[%clk 0:00:29.4]} 46. Ke2 {[%clk 0:00:29.9]} 46... Rh1 {[%clk 0:00:25.1]} 47.
Rc8 {[%clk 0:00:29.4]} 47... Rxh2 {[%clk 0:00:20.9]} 48. Bg3 {[%clk 0:00:30.7]}
48... Rh1 {[%clk 0:00:20.3]} 49. Ra8 {[%clk 0:00:31.6]} 49... h5 {[%clk
0:00:18.7]} 50. Kf3 {[%clk 0:00:30.5]} 50... Ra1 {[%clk 0:00:14.1]} 51. Rxa7
{[%clk 0:00:30.4]} 51... Kf6 {[%clk 0:00:14.7]} 52. a5 {[%clk 0:00:26.3]} 52...
Kxe6 {[%clk 0:00:15.8]} 53. a6 {[%clk 0:00:27.7]} 53... Kd5 {[%clk 0:00:15.3]}
54. Ra8 {[%clk 0:00:27.7]} 54... Bc5 {[%clk 0:00:14.9]} 55. Rd8+ {[%clk
0:00:27]} 55... Kc4 {[%clk 0:00:15.3]} 56. Ra8 {[%clk 0:00:26.9]} 56... Kb5
{[%clk 0:00:16.3]} 57. Rb8+ {[%clk 0:00:25.5]} 57... Bb6 {[%clk 0:00:17.4]} 58.
Bh4 {[%clk 0:00:25.1]} 58... Rxa6 {[%clk 0:00:16.7]} 59. Bxe7 {[%clk 0:00:26.4]}
59... Kc6 {[%clk 0:00:17.2]} 60. Rg8 {[%clk 0:00:27.2]} 60... Kd7 {[%clk
0:00:18.4]} 61. Bg5 {[%clk 0:00:25.3]} 61... Bd4 {[%clk 0:00:19]} 62. Rd8+
{[%clk 0:00:26.2]} 62... Ke6 {[%clk 0:00:19.1]} 63. Rxd4 {[%clk 0:00:28.1]}
63... Ra3+ {[%clk 0:00:20]} 64. Kg2 {[%clk 0:00:29.5]} 64... Ra6 {[%clk
0:00:20.8]} 65. Rd8 {[%clk 0:00:30.2]} 65... Ra7 {[%clk 0:00:21.2]} 66. Rf8
{[%clk 0:00:31.5]} 66... Rg7 {[%clk 0:00:20.6]} 67. Rf6+ {[%clk 0:00:32.5]}
67... Kd7 {[%clk 0:00:21.1]} 68. Kg3 {[%clk 0:00:34.4]} 68... Rg8 {[%clk
0:00:21.5]} 69. Kh4 {[%clk 0:00:35.8]} 69... Ke8 {[%clk 0:00:22.9]} 70. Bh6
{[%clk 0:00:36.8]} 70... Ke7 {[%clk 0:00:23.9]} 71. Ra6 {[%clk 0:00:35.7]} 71...
Rc8 {[%clk 0:00:24.1]} 72. Rxg6 {[%clk 0:00:36.2]} 72... Rc2 {[%clk 0:00:24.3]}
73. Rg2 {[%clk 0:00:36.4]} 73... Kf6 {[%clk 0:00:24.9]} 74. Bg7+ {[%clk
0:00:35.5]} 74... Kf7 {[%clk 0:00:23.9]} 75. Be5 {[%clk 0:00:36.5]} 75... Rc1
{[%clk 0:00:25.1]} 76. Kxh5 {[%clk 0:00:37.9]} 76... Ke6 {[%clk 0:00:24.9]} 77.
Rg6+ {[%clk 0:00:36.2]} 77... Kd5 {[%clk 0:00:25.7]} 78. Kg5 {[%clk 0:00:37.6]}
78... Ke4 {[%clk 0:00:26.9]} 79. f3+ {[%clk 0:00:39.1]} 79... Kxf3 {[%clk
0:00:27.2]} 80. Kxf5 {[%clk 0:00:41]} 80... Rc5 {[%clk 0:00:10.3]} 81. Rb6
{[%clk 0:00:41.1]} 81... Rc8 {[%clk 0:00:08.9]} 82. Rb3+ {[%clk 0:00:42.2]}
82... Ke2 {[%clk 0:00:08.8]} 83. Ke6 {[%clk 0:00:43.7]} 83... Rd8 {[%clk
0:00:02.9]} 84. f5 {[%clk 0:00:42.9]} 84... Rg8 {[%clk 0:00:04.8]} 85. f6 {[%clk
0:00:44]} 85... Rf8 {[%clk 0:00:06.7]} 86. f7 {[%clk 0:00:45.3]} 86... Rxf7
{[%clk 0:00:07.5]} 87. Kxf7 {[%clk 0:00:46.4]} 1-0

[Event "*** Titled Tuesday 3|2 Blitz"]
[Site "Chess.com"]
[Date "2016.07.05"]
[Round "6"]
[White "Evgeny_Levin"]
[Black "Danhy"]
[Result "1-0"]
[WhiteElo "2630"]
[BlackElo "2409"]
[TimeControl "180+2"]
[EndTime "18:10:53 PDT"]
[Termination "Evgeny_Levin won by resignation"]

1. d4 {[%clk 0:02:56.5]} 1... Nf6 {[%clk 0:02:59.9]} 2. c4 {[%clk 0:02:57.7]}
2... g6 {[%clk 0:03:00.1]} 3. Nc3 {[%clk 0:02:57.6]} 3... d5 {[%clk 0:03:01.7]}
4. cxd5 {[%clk 0:02:59.5]} 4... Nxd5 {[%clk 0:03:02.3]} 5. Bd2 {[%clk
0:03:01.1]} 5... Bg7 {[%clk 0:03:02.3]} 6. e4 {[%clk 0:03:02]} 6... Nxc3 {[%clk
0:02:59.9]} 7. Bxc3 {[%clk 0:03:03.9]} 7... O-O {[%clk 0:03:01.2]} 8. Qd2 {[%clk
0:03:04]} 8... Nc6 {[%clk 0:03:00.3]} 9. Nf3 {[%clk 0:03:03.8]} 9... Bg4 {[%clk
0:02:59.9]} 10. d5 {[%clk 0:03:02.8]} 10... Bxf3 {[%clk 0:03:00.6]} 11. gxf3
{[%clk 0:03:03.3]} 11... Ne5 {[%clk 0:03:00.7]} 12. Be2 {[%clk 0:02:59.6]} 12...
c6 {[%clk 0:02:42.8]} 13. f4 {[%clk 0:03:00.4]} 13... Nd7 {[%clk 0:02:43.1]} 14.
Bxg7 {[%clk 0:03:00.7]} 14... Kxg7 {[%clk 0:02:42.8]} 15. dxc6 {[%clk
0:03:02.6]} 15... bxc6 {[%clk 0:02:43.6]} 16. Rc1 {[%clk 0:03:03.8]} 16... Nf6
{[%clk 0:02:38.2]} 17. Rc4 {[%clk 0:03:00.6]} 17... Qc7 {[%clk 0:02:31.8]} 18.
e5 {[%clk 0:02:57.5]} 18... Nd7 {[%clk 0:02:28.6]} 19. Bf3 {[%clk 0:02:56.7]}
19... Rad8 {[%clk 0:02:15]} 20. Rxc6 {[%clk 0:02:49.1]} 20... Qb8 {[%clk
0:01:32.2]} 21. Qc3 {[%clk 0:02:48.5]} 21... Kg8 {[%clk 0:01:26.9]} 22. O-O
{[%clk 0:02:46]} 22... Nb6 {[%clk 0:01:26.3]} 23. Rc7 {[%clk 0:02:38.2]} 23...
Na4 {[%clk 0:01:07.6]} 24. Qc6 {[%clk 0:02:35.4]} 24... Nxb2 {[%clk 0:01:01.4]}
25. Rb7 {[%clk 0:02:33.9]} 1-0

[Event "*** Titled Tuesday 3|2 Blitz"]
[Site "Chess.com"]
[Date "2016.07.05"]
[Round "6"]
[White "Ksenia_Legenko"]
[Black "simplerXiao"]
[Result "0-1"]
[WhiteElo "2059"]
[BlackElo "2297"]
[TimeControl "180+2"]
[EndTime "18:12:40 PDT"]
[Termination "simplerXiao won by checkmate"]

1. d4 {[%clk 0:03:01.9]} 1... Nf6 {[%clk 0:02:58.5]} 2. c4 {[%clk 0:02:57.4]}
2... e5 {[%clk 0:02:58.7]} 3. dxe5 {[%clk 0:02:57.6]} 3... Ng4 {[%clk
0:02:58.9]} 4. Nf3 {[%clk 0:02:59.2]} 4... Nc6 {[%clk 0:02:57.8]} 5. Nc3 {[%clk
0:02:54.8]} 5... Ngxe5 {[%clk 0:02:56.6]} 6. e3 {[%clk 0:02:55.3]} 6... Bb4
{[%clk 0:02:56.3]} 7. Be2 {[%clk 0:02:54.7]} 7... d6 {[%clk 0:02:57.3]} 8. O-O
{[%clk 0:02:55]} 8... O-O {[%clk 0:02:57.7]} 9. Nd5 {[%clk 0:02:55.9]} 9... Bc5
{[%clk 0:02:56.1]} 10. b3 {[%clk 0:02:54.9]} 10... a5 {[%clk 0:02:54.1]} 11. Bb2
{[%clk 0:02:54.8]} 11... Be6 {[%clk 0:02:49.2]} 12. Nxe5 {[%clk 0:02:49.5]}
12... Nxe5 {[%clk 0:02:48.7]} 13. Nf4 {[%clk 0:02:49.2]} 13... Bf5 {[%clk
0:02:46.5]} 14. Bf3 {[%clk 0:02:38.4]} 14... Rb8 {[%clk 0:02:39.4]} 15. e4
{[%clk 0:02:26.4]} 15... Bg6 {[%clk 0:02:35.2]} 16. Nxg6 {[%clk 0:02:27]} 16...
hxg6 {[%clk 0:02:33.5]} 17. Qe2 {[%clk 0:02:20.5]} 17... Qh4 {[%clk 0:02:29.9]}
18. Rad1 {[%clk 0:02:17.4]} 18... Rfe8 {[%clk 0:02:26.6]} 19. Rfe1 {[%clk
0:02:06.4]} 19... g5 {[%clk 0:02:15.6]} 20. g3 {[%clk 0:02:00.4]} 20... Qh6
{[%clk 0:02:16.1]} 21. Bg2 {[%clk 0:02:00.4]} 21... Qf6 {[%clk 0:02:12.3]} 22.
Rf1 {[%clk 0:01:50.7]} 22... Qg6 {[%clk 0:01:59.5]} 23. Kh1 {[%clk 0:01:32.3]}
23... g4 {[%clk 0:01:59.7]} 24. Rd5 {[%clk 0:01:17.7]} 24... c6 {[%clk
0:01:57.5]} 25. Rdd1 {[%clk 0:01:17.4]} 25... Qh5 {[%clk 0:01:57.7]} 26. Kg1
{[%clk 0:01:12.1]} 26... Re6 {[%clk 0:01:53.8]} 27. Bc1 {[%clk 0:00:47.6]} 27...
Nf3+ {[%clk 0:01:49.5]} 28. Bxf3 {[%clk 0:00:45.4]} 28... gxf3 {[%clk
0:01:50.8]} 29. Qc2 {[%clk 0:00:40.1]} 29... Qh3 {[%clk 0:01:49.8]} 30. Qc3
{[%clk 0:00:28.1]} 30... Qg2# {[%clk 0:01:48.1]} 0-1